[Event "UKR-ch Semifinal 2018"]
[Site "Omelnyk"]
[Date "2018.11.01"]
[Round "7"]
[White "Bakhmatsky, Vladislav"]
[Black "Borsuk, Konstantin"]
[Result "1-0"]
[ECO "B12"]
[WhiteElo "2409"]
[BlackElo "2354"]
[Annotator "ChessBase"]
[PlyCount "73"]
[EventDate "2018.11.26"]
[EventType "tourn"]
[EventCountry "UKR"]
[SourceTitle "playchess.com"]
[Source "ChessBase"]
[SourceQuality "1"]
[TimeControl "40/5400+30:1800+30"]

1. e4 {[%emt 0:00:00]} c6 {[%emt 0:00:00]} 2. d4 {[%emt 0:00:00]} d5 {[%emt 0:00:00]} 3. e5 {[%emt 0:00:00]} Bf5 {[%emt 0:00:00]} 4. h4 {[%emt 0:01:44]} h5 {[%emt 0:01:06]} 5. Bd3 {[%emt 0:00:08]} Bxd3 {[%emt 0:01:00]} 6. Qxd3 {[%emt 0:00:02]} e6 {[%emt 0:02:03]} 7. Bg5 {[%emt 0:02:18]} Qa5+ {[%emt 0:03:10]} 8. Nd2 {[%emt 0:01:48]} Qa6 {[%emt 0:03:04]} 9. c4 {[%emt 0:04:38]} Ne7 {[%emt 0:07:30]} 10. b3 {[%emt 0:32:26]} Nd7 {[%emt 0:04:40]} 11. Ngf3 {[%emt 0:11:59]} f6 {[%emt 0:09:29]} 12. Bf4 {[%emt 0:05:30]} Kf7 {[%emt 0:10:33]} 13. O-O {[%emt 0:01:49]} Ng6 {[%emt 0:01:40]} 14. Bg3 {[%emt 0:02:25]} Be7 {[%emt 0:02:42]} 15. exf6 {[%emt 0:02:42]} gxf6 {[%emt 0:01:11]} 16. Rfe1 {[%emt 0:03:24]} Ndf8 {[%emt 0:00:36]} 17. a3 {[%emt 0:05:13]} Rd8 {[%emt 0:01:11]} 18. b4 {[%emt 0:01:01]} b6 {[%emt 0:08:21]} 19. Qb3 {[%emt 0:02:26]} Qb7 {[%emt 0:01:23]} 20. Rac1 {[%emt 0:00:48]} Bd6 {[%emt 0:00:49]} 21. Bxd6 {[%emt 0:03:42]} Rxd6 {[%emt 0:00:11]} 22. c5 {[%emt 0:08:52]} Rd8 {[%emt 0:08:49]} 23. cxb6 {[%emt 0:01:04]} axb6 {[%emt 0:02:54]} 24. Rc3 {[%emt 0:00:52]} Rg8 {[%emt 0:02:20]} 25. b5 {[%emt 0:01:02]} Rc8 {[%emt 0:06:10]} 26. Qc2 {[%emt 0:00:52]} c5 {[%emt 0:01:10]} 27. dxc5 {[%emt 0:00:19]} bxc5 {[%emt 0:00:11]} 28. Rxc5 {[%emt 0:00:13]} Rxc5 {[%emt 0:00:19]} 29. Qxc5 {[%emt 0:00:11]} Nf4 {[%emt 0:00:14]} 30. Rb1 {[%emt 0:01:34]} Rxg2+ {[%emt 0:02:13]} 31. Kh1 {[%emt 0:01:05]} Kg8 {[%emt 0:04:47]} 32. Qd6 {[%emt 0:01:25]} e5 {[%emt 0:05:06]} 33. Qxf6 {[%emt 0:01:39]} Qd7 {[%emt 0:02:07]} 34. Ng5 {[%emt 0:01:10]} N8g6 {[%emt 0:02:19]} 35. Ndf3 {[%emt 0:00:59]} Rxf2 {[%emt 0:02:15]} 36. Nxe5 {[%emt 0:00:41]} d4 {[%emt 0:05:31]} 37. Nxd7 {[%emt 0:00:43]} 1-0